fUST/lending_fUST_20241008
["ID","MTS","AMOUNT","RATE_DAILY","PERIOD"]
[340026929,1728334332496,-1047.98,0.00042739,120]
[340026930,1728334332507,-683.38,0.00042739,120]
[340026931,1728334332518,-500.0,0.00042739,120]
[340026932,1728334332530,-1235.61,0.00042739,120]
[340026933,1728334332542,-1137.42,0.00042739,120]
[340026934,1728334332554,-500.0,0.00042739,120]
[340026935,1728334332565,-500.0,0.00042739,120]
[340026936,1728334332575,-500.0,0.00042739,120]
[340026937,1728334332585,-575.41,0.00042739,120]
[340026938,1728334332595,-500.0,0.00042739,120]
[340026939,1728334332606,-800.54,0.00042739,120]
[340026940,1728334332618,-266.52625017,0.00042739,120]
[340026941,1728334332628,-709.12,0.00042739,120]
[340026942,1728334332639,-711.22,0.00042739,120]
[340026943,1728334332649,-550.77,0.00042739,120]
[340026944,1728334332660,-500.0,0.00042739,120]
[340026945,1728334332671,-516.957725,0.00042739,120]
[340026946,1728334332682,-744.73,0.00042739,120]
[340026947,1728334332691,-750.18,0.00042739,120]
[340026948,1728334332702,-607.18,0.00042739,120]
[340026949,1728334332713,-1202.82,0.00042739,120]
[340026950,1728334332725,-500.0,0.00042739,120]
[340026951,1728334332735,-1170.58,0.00042739,120]
[340026952,1728334332744,-469.83589684,0.00042739,120]
[340026953,1728334332754,-500.0,0.00042739,120]
[340026954,1728334332765,-637.28,0.00042739,120]
[340026955,1728334332775,-500.0,0.00042739,120]
[340026956,1728334332787,-338.08752895,0.00042739,120]
[340026957,1728334332798,-1008.72,0.00042739,120]
[340026958,1728334332809,-237.61263847,0.00042739,120]
[340026959,1728334332821,-576.24,0.00042739,120]
[340026960,1728334332832,-787.72,0.00042739,120]
[340026961,1728334332842,-232.19733223,0.00042739,120]
[340026962,1728334332852,-687.3,0.00042739,120]
[340026963,1728334332862,-917.09,0.00042739,120]
[340026964,1728334332873,-1008.32,0.00042739,120]
[340026965,1728334332884,-1051.57,0.00042739,120]
[340026966,1728334332895,-677.92,0.00042739,120]
[340026967,1728334332906,-500.0,0.00042739,120]
[340026968,1728334332918,-529.97,0.00042739,120]
[340026969,1728334332929,-1141.57,0.00042739,120]
[340026970,1728334332938,-954.06,0.00042739,120]
[340026971,1728334332948,-865.56,0.00042739,120]
[340026972,1728334332958,-818.05,0.00042739,120]
[340026973,1728334332968,-500.0,0.00042739,120]
[340026974,1728334332979,-647.55,0.00042739,120]
[340026975,1728334332990,-504.35,0.00042739,120]
[340026976,1728334333000,-851.04,0.00042739,120]
[340026977,1728334333017,-523.84,0.00042739,120]
[340026978,1728334333027,-757.96,0.00042739,30]
[340026979,1728334333039,-563.6,0.00042739,120]
[340026980,1728334333049,-555.29,0.00042739,120]
[340026981,1728334333060,-192.42495678,0.00042739,120]
[340026982,1728334333070,-241.10892498,0.00042739,120]
[340026983,1728334333080,-743.56,0.00042739,120]
[340026984,1728334333091,-500.0,0.00042739,120]
[340026985,1728334333101,-754.92,0.00042739,120]
[340026986,1728334333112,-1365.58,0.00042739,120]
[340026987,1728334333125,-623.42,0.00042739,120]
[340026988,1728334333137,-861.29,0.00042739,120]
[340026989,1728334333147,-573.92,0.00042739,120]
[340026990,1728334333158,-555.73,0.00042739,120]
[340026991,1728334333169,-917.57,0.00042739,120]
[340026992,1728334333178,-500.0,0.00042739,120]
[340026993,1728334333188,-544.85,0.00042739,120]
[340026994,1728334333198,-571.4,0.00042739,60]
[340026995,1728334333207,-719.55,0.00042739,120]
[340026996,1728334333217,-640.61,0.00042739,120]
[340026997,1728334333226,-173.52143774,0.00042739,120]
[340026998,1728334333235,-918.63,0.00042739,120]
[340026999,1728334333245,-812.73,0.00042739,120]
[340027000,1728334333255,-500.0,0.00042739,120]
[340027001,1728334333264,-502.3,0.00042739,120]
[340027002,1728334333273,-500.0,0.00042739,120]
[340027003,1728334333282,-708.61,0.00042739,120]
[340027004,1728334333292,-537.44,0.00042739,120]
[340027005,1728334333301,-610.21,0.00042739,120]
[340027006,1728334333311,-554.6,0.00042739,120]
[340027007,1728334333320,-401.99978366,0.00042739,120]
[340027008,1728334333329,-500.0,0.00042739,120]
[340027009,1728334333339,-500.0,0.00042739,120]
[340027010,1728334333348,-760.72,0.00042739,120]
[340027011,1728334333358,-505.93,0.00042739,120]
[340027012,1728334333367,-500.0,0.00042739,120]
[340027013,1728334333376,-579.67,0.00042739,120]
[340027014,1728334333387,-500.0,0.00042739,120]
[340027015,1728334333397,-500.0,0.00042739,120]
[340027016,1728334333408,-500.0,0.00042739,120]
[340027017,1728334333419,-909.57,0.00042739,120]
[340027018,1728334333428,-699.58,0.00042739,120]
[340027019,1728334333437,-778.22,0.00042739,120]
[340027020,1728334333446,-1176.62,0.00042739,120]
[340027021,1728334333455,-538.25,0.00042739,120]
[340027022,1728334333464,-628.45,0.00042739,120]
[340027023,1728334333473,-799.02,0.00042739,120]
[340027024,1728334333484,-1344.11,0.00042739,21]
[340027025,1728334333495,-500.0,0.00042739,120]
[340027026,1728334333506,-1176.49,0.00042739,120]
[340027027,1728334333517,-275.89220232,0.00042739,120]
[340027028,1728334333527,-538.89,0.00042739,120]
[340027029,1728334333538,-500.0,0.00042739,120]
[340027030,1728334333548,-500.0,0.00042739,120]
[340027031,1728334333558,-2556.51,0.00042739,120]
[340027032,1728334333567,-686.35,0.00042739,120]
[340027033,1728334333577,-1127.5,0.00042739,120]
[340027034,1728334333587,-557.71,0.00042739,120]
[340027035,1728334333598,-336.73,0.00042739,7]
[340027036,1728334333609,-618.33,0.00042739,120]
[340027037,1728334333620,-554.61,0.00042739,120]
[340027038,1728334333629,-724.85,0.00042739,120]
[340027039,1728334333639,-500.0,0.00042739,120]
[340027040,1728334333648,-500.03478018,0.00042739,120]
[340027041,1728334333657,-575.14,0.00042739,120]
[340027042,1728334333666,-500.0,0.00042739,120]
[340027043,1728334333675,-501.94,0.00042739,120]
[340027044,1728334333684,-500.0,0.00042739,120]
[340027045,1728334333693,-557.73,0.00042739,120]
[340027046,1728334333702,-819.33,0.00042739,120]
[340027047,1728334333711,-521.05,0.00042739,120]
[340027048,1728334333721,-1265.51,0.00042739,120]
[340027049,1728334333735,-518.1,0.00042739,120]
[340027050,1728334333744,-583.01,0.00042739,120]
[340027051,1728334333754,-500.0,0.00042739,120]
[340027052,1728334333763,-514.24501474,0.00042739,120]
[340027053,1728334333774,-500.0,0.00042739,120]
[340027054,1728334333784,-1208.8,0.00042739,120]
[340027055,1728334333794,-618.94,0.00042739,120]
[340027056,1728334333803,-500.0,0.00042739,120]
[340027057,1728334333812,-718.42,0.00042739,120]
[340027058,1728334333821,-705.43,0.00042739,120]
[340027059,1728334333830,-500.0,0.00042739,120]
[340027060,1728334333840,-512.16,0.00042739,7]
[340027061,1728334333850,-1000.59,0.00042739,120]
[340027062,1728334333859,-2499.96,0.00042739,120]
[340027063,1728334333868,-500.0,0.00042739,120]
[340027064,1728334333878,-550.18,0.00042739,120]
[340027065,1728334333887,-615.51,0.00042739,120]
[340027066,1728334333896,-500.0,0.00042739,120]
[340027067,1728334333906,-500.0,0.00042739,120]
[340027068,1728334333915,-824.07,0.00042739,120]
[340027069,1728334333924,-1097.32,0.00042739,120]
[340027070,1728334333933,-516.16,0.00042739,120]
[340027071,1728334333942,-413.22670719,0.00042739,120]
[340027072,1728334333952,-514.48,0.00042739,120]
[340027073,1728334333961,-584.54,0.00042739,120]
[340027074,1728334333970,-500.0,0.00042739,120]
[340027075,1728334333983,-502.32,0.00042739,120]
[340027076,1728334333993,-500.0,0.00042739,120]
[340027077,1728334334002,-500.0,0.00042739,120]
[340027078,1728334334011,-200.0,0.00042739,120]
[340027079,1728334334021,-659.67,0.00042739,30]
[340027080,1728334334031,-843.64,0.00042739,120]
[340027081,1728334334041,-826.06,0.00042739,120]
[340027082,1728334334050,-844.53,0.00042739,120]
[340027083,1728334334059,-500.0,0.00042739,120]
[340027084,1728334334068,-500.0,0.00042739,120]
[340027085,1728334334077,-863.29,0.00042739,120]
[340027086,1728334334086,-714.69,0.00042739,120]
[340027087,1728334334096,-500.0,0.00042739,120]
[340027088,1728334334105,-500.0,0.00042739,120]
[340027089,1728334334114,-537.33,0.00042739,120]
[340027090,1728334334127,-611.81,0.00042739,120]
[340027091,1728334334136,-500.0,0.00042739,120]
[340027092,1728334334144,-679.62,0.00042739,120]
[340027093,1728334334153,-769.77,0.00042739,120]
[340027094,1728334334162,-944.22,0.00042739,120]
[340027095,1728334334172,-514.42,0.00042739,120]
[340027096,1728334334182,-677.66,0.00042739,120]
[340027097,1728334334191,-154.84576785,0.00042898,120]
[340027098,1728334334203,-1142.74157816,0.000429,30]
[340027099,1728334334214,-150.0,0.00042954,120]
[340027100,1728334334223,-2000.0,0.00043,43]
[340027101,1728334334233,-5063.0,0.00043,10]
[340027102,1728334334242,-301349.94,0.00043,14]
[340027103,1728334334251,-306.2659631,0.00043,120]
[340027104,1728334334260,-2727.64595289,0.00043,120]
[340027105,1728334334269,-150.0,0.00043,60]
[340027106,1728334334278,-400.0,0.00043,120]
[340027107,1728334334287,-1557.94,0.00043013,120]
[340027108,1728334334297,-500.0,0.00043013,120]
[340027109,1728334334306,-878.3,0.00043013,120]
[340027110,1728334334316,-545.39,0.00043013,120]
[340027111,1728334334325,-603.96,0.00043013,120]
[340027112,1728334334334,-500.0,0.00043013,120]
[340027113,1728334334344,-500.0,0.00043013,120]
[340027114,1728334334354,-800.19,0.00043013,120]
[340027115,1728334334363,-751.04,0.00043013,120]
[340027116,1728334334372,-500.0,0.00043013,7]
[340027117,1728334334382,-500.0,0.00043013,120]
[340027118,1728334334393,-841.21,0.00043013,120]
[340027119,1728334334404,-500.0,0.00043013,120]
[340027120,1728334334415,-612.78,0.00043013,120]
[340027121,1728334334426,-500.0,0.00043013,120]
[340027122,1728334334437,-589.28,0.00043013,120]
[340027123,1728334334449,-500.0,0.00043013,120]
[340027124,1728334334458,-557.3,0.00043013,120]
[340027125,1728334334468,-500.0,0.00043013,120]
[340027126,1728334334479,-949.88,0.00043013,120]
[340027127,1728334334489,-660.6,0.00043013,120]
[340027128,1728334334502,-754.75,0.00043013,120]
[340027129,1728334334513,-818.47,0.00043013,120]
[340027130,1728334334524,-550.91,0.00043013,120]
[340027131,1728334334535,-500.0,0.00043013,120]
[340027132,1728334334545,-625.1,0.00043013,120]
[340027133,1728334334556,-914.39,0.00043013,120]
[340027134,1728334334566,-500.0,0.00043013,120]
[340027135,1728334334578,-500.0,0.00043013,120]
[340027136,1728334334590,-500.0,0.00043013,120]
[340027137,1728334334600,-500.0,0.00043013,120]
[340027138,1728334334610,-1047.98,0.00043013,120]
[340027139,1728334334621,-683.38,0.00043013,120]
[340027140,1728334334631,-500.0,0.00043013,120]
[340027141,1728334334641,-1235.61,0.00043013,120]
[340027142,1728334334652,-1137.42,0.00043013,120]
[340027143,1728334334663,-500.0,0.00043013,120]
[340027144,1728334334674,-500.0,0.00043013,120]
[340027145,1728334334685,-500.0,0.00043013,120]
[340027146,1728334334696,-575.41,0.00043013,120]
[340027147,1728334334708,-524.3115645,0.00043013,120]
[340027148,1728334334717,-800.54,0.00043013,120]
[340027149,1728334334730,-709.12,0.00043013,120]
[340027150,1728334334740,-711.22,0.00043013,120]
[340027151,1728334334752,-550.77,0.00043013,120]
[340027152,1728334334764,-383.50714961,0.00043013,120]
[340027153,1728334334775,-744.73,0.00043013,120]
[340027154,1728334334787,-750.18,0.00043013,120]
[340027155,1728334334798,-607.18,0.00043013,120]
[340027156,1728334334808,-1202.82,0.00043013,120]
[340027157,1728334334819,-500.0,0.00043013,120]
[340027158,1728334334830,-1170.58,0.00043013,120]
[340027159,1728334334840,-500.0,0.00043013,120]
[340027160,1728334334851,-637.28,0.00043013,120]
[340027161,1728334334862,-500.0,0.00043013,120]
[340027162,1728334334872,-1008.72,0.00043013,120]
[340027163,1728334334883,-576.24,0.00043013,120]
[340027164,1728334334895,-787.72,0.00043013,120]
[340027165,1728334334907,-687.3,0.00043013,120]
[340027166,1728334334917,-917.09,0.00043013,120]
[340027167,1728334334927,-1008.32,0.00043013,120]
[340027168,1728334334936,-1051.57,0.00043013,120]
[340027169,1728334334947,-677.92,0.00043013,120]
[340027170,1728334334959,-500.0,0.00043013,120]
[340027171,1728334334969,-529.97,0.00043013,120]
[340027172,1728334334980,-1141.57,0.00043013,120]
[340027173,1728334334990,-954.06,0.00043013,120]
[340027174,1728334335001,-865.56,0.00043013,120]
[340027175,1728334335010,-818.05,0.00043013,120]
[340027176,1728334335019,-500.0,0.00043013,120]
[340027177,1728334335029,-647.55,0.00043013,120]
[340027178,1728334335038,-504.35,0.00043013,120]
[340027179,1728334335047,-851.04,0.00043013,120]
[340027180,1728334335057,-523.84,0.00043013,120]
[340027181,1728334335067,-757.96,0.00043013,30]
[340027182,1728334335076,-563.6,0.00043013,120]
[340027183,1728334335085,-555.29,0.00043013,120]
[340027184,1728334335094,-743.56,0.00043013,120]
[340027185,1728334335103,-500.0,0.00043013,120]
[340027186,1728334335113,-754.92,0.00043013,120]
[340027187,1728334335125,-1365.58,0.00043013,120]
[340027188,1728334335134,-623.42,0.00043013,120]
[340027189,1728334335144,-861.29,0.00043013,120]
[340027190,1728334335153,-573.92,0.00043013,120]
[340027191,1728334335163,-555.73,0.00043013,120]
[340027192,1728334335173,-917.57,0.00043013,120]
[340027193,1728334335183,-500.0,0.00043013,120]
[340027194,1728334335192,-544.85,0.00043013,120]
[340027195,1728334335202,-571.4,0.00043013,60]
[340027196,1728334335211,-719.55,0.00043013,120]
[340027197,1728334335221,-640.61,0.00043013,120]
[340027198,1728334335231,-918.63,0.00043013,120]
[340027199,1728334335240,-812.73,0.00043013,120]
[340027200,1728334335249,-500.0,0.00043013,120]
[340027201,1728334335258,-502.3,0.00043013,120]
[340027202,1728334335268,-500.0,0.00043013,120]
[340027203,1728334335277,-708.61,0.00043013,120]
[340027204,1728334335287,-537.44,0.00043013,120]
[340027205,1728334335296,-610.21,0.00043013,120]
[340027206,1728334335305,-554.6,0.00043013,120]
[340027207,1728334335315,-500.0,0.00043013,120]
[340027208,1728334335324,-500.0,0.00043013,120]
[340027209,1728334335333,-760.72,0.00043013,120]
[340027210,1728334335342,-505.93,0.00043013,120]
[340027211,1728334335351,-500.0,0.00043013,120]
[340027212,1728334335360,-579.67,0.00043013,120]
[340027213,1728334335370,-500.0,0.00043013,120]
[340027214,1728334335378,-574.22733274,0.00043013,120]
[340027215,1728334335387,-500.0,0.00043013,120]
[340027216,1728334335396,-909.57,0.00043013,120]
[340027217,1728334335405,-699.58,0.00043013,120]
[340027218,1728334335415,-778.22,0.00043013,120]
[340027219,1728334335424,-1176.62,0.00043013,120]
[340027220,1728334335433,-538.25,0.00043013,120]
[340027221,1728334335442,-628.45,0.00043013,120]
[340027222,1728334335451,-799.02,0.00043013,120]
[340027223,1728334335624,-1344.11,0.00043013,21]
[340027224,1728334335634,-500.0,0.00043013,120]
[340027225,1728334335643,-1176.49,0.00043013,120]
[340027226,1728334335652,-538.89,0.00043013,120]
[340027227,1728334335661,-500.0,0.00043013,120]
[340027228,1728334335670,-500.0,0.00043013,120]
[340027229,1728334335680,-2556.51,0.00043013,120]
[340027230,1728334335689,-686.35,0.00043013,120]
[340027231,1728334335698,-1127.5,0.00043013,120]
[340027232,1728334335707,-557.71,0.00043013,120]
[340027233,1728334335717,-336.73,0.00043013,7]
[340027234,1728334335726,-618.33,0.00043013,120]
[340027235,1728334335737,-554.61,0.00043013,120]
[340027236,1728334335746,-724.85,0.00043013,120]
[340027237,1728334335756,-500.0,0.00043013,120]
[340027238,1728334335765,-575.14,0.00043013,120]
[340027239,1728334335774,-500.0,0.00043013,120]
[340027240,1728334335783,-501.94,0.00043013,120]
[340027241,1728334335792,-500.0,0.00043013,120]
[340027242,1728334335801,-557.73,0.00043013,120]
[340027243,1728334335810,-819.33,0.00043013,120]
[340027244,1728334335819,-521.05,0.00043013,120]
[340027245,1728334335827,-1265.51,0.00043013,120]
[340027246,1728334335838,-518.1,0.00043013,120]
[340027247,1728334335847,-583.01,0.00043013,120]
[340027248,1728334335856,-500.0,0.00043013,120]
[340027249,1728334335866,-500.0,0.00043013,120]
[340027250,1728334335875,-1208.8,0.00043013,120]
[340027251,1728334335884,-618.94,0.00043013,120]
[340027252,1728334335894,-500.0,0.00043013,120]
[340027253,1728334335903,-718.42,0.00043013,120]
[340027254,1728334335913,-705.43,0.00043013,120]
[340027255,1728334335922,-500.0,0.00043013,120]
[340027256,1728334335931,-512.16,0.00043013,7]
[340027257,1728334335940,-1000.59,0.00043013,120]
[340027258,1728334335950,-2499.96,0.00043013,120]
[340027259,1728334335959,-500.0,0.00043013,120]
[340027260,1728334335968,-550.18,0.00043013,120]
[340027261,1728334335978,-615.51,0.00043013,120]
[340027262,1728334335988,-500.0,0.00043013,120]
[340027263,1728334335998,-500.0,0.00043013,120]
[340027264,1728334336007,-824.07,0.00043013,120]
[340027265,1728334336029,-1097.32,0.00043013,120]
[340027266,1728334336038,-516.16,0.00043013,120]
[340027267,1728334336048,-514.48,0.00043013,120]
[340027268,1728334336057,-584.54,0.00043013,120]
[340027269,1728334336066,-500.0,0.00043013,120]
[340027270,1728334336075,-502.32,0.00043013,120]
[340027271,1728334336084,-500.0,0.00043013,120]
[340027272,1728334336094,-500.0,0.00043013,120]
[340027273,1728334336103,-200.0,0.00043013,120]
[340027274,1728334336112,-659.67,0.00043013,30]
[340027275,1728334336123,-843.64,0.00043013,120]
[340027276,1728334336133,-826.06,0.00043013,120]
[340027277,1728334336143,-844.53,0.00043013,120]
[340027278,1728334336152,-559.67214617,0.00043013,120]
[340027279,1728334336162,-504.42224859,0.00043013,120]
[340027280,1728334336171,-863.29,0.00043013,120]
[340027281,1728334336181,-714.69,0.00043013,120]
[340027282,1728334336190,-500.0,0.00043013,120]
[340027283,1728334336202,-500.0,0.00043013,120]
[340027284,1728334336211,-537.33,0.00043013,120]
[340027285,1728334336221,-611.81,0.00043013,120]
[340027286,1728334336231,-500.0,0.00043013,120]
[340027287,1728334336240,-679.62,0.00043013,120]
[340027288,1728334336250,-769.77,0.00043013,120]
[340027289,1728334336261,-944.22,0.00043013,120]
[340027290,1728334336271,-514.42,0.00043013,120]
[340027291,1728334336281,-677.66,0.00043013,120]
[340027292,1728334336290,-207.855109,0.0004305,120]
[340027293,1728334336299,-3000.0,0.00043068,60]
[340027294,1728334336309,-500.0,0.0004315,33]
[340027295,1728334336318,-152.0,0.0004315,31]
[340027296,1728334336327,-152.0,0.0004315,31]
[340027297,1728334336336,-1557.94,0.00043287,120]
[340027298,1728334336346,-500.0,0.00043287,120]
[340027299,1728334336356,-878.3,0.00043287,120]
[340027300,1728334336365,-545.39,0.00043287,120]
[340027301,1728334336374,-603.96,0.00043287,120]
[340027302,1728334336384,-500.0,0.00043287,120]
[340027303,1728334336393,-500.0,0.00043287,120]
[340027304,1728334336403,-800.19,0.00043287,120]
[340027305,1728334336412,-751.04,0.00043287,120]
[340027306,1728334336422,-360.61004307,0.00043287,7]
[340027307,1728334336431,-500.0,0.00043287,120]
[340027308,1728334336440,-841.21,0.00043287,120]
[340027309,1728334336450,-500.0,0.00043287,120]
[340027310,1728334336461,-612.78,0.00043287,120]
[340027311,1728334336472,-500.0,0.00043287,120]
[340027312,1728334336484,-589.28,0.00043287,120]
[340027313,1728334336495,-500.0,0.00043287,120]
[340027314,1728334336508,-557.3,0.00043287,120]
[340027315,1728334336519,-500.0,0.00043287,120]
[340027316,1728334336531,-949.88,0.00043287,120]
[340027317,1728334336540,-660.6,0.00043287,120]
[340027318,1728334336551,-754.75,0.00043287,120]
[340027319,1728334336563,-818.47,0.00043287,120]
[340027320,1728334336574,-550.91,0.00043287,120]
[340027321,1728334336586,-500.0,0.00043287,120]
[340027322,1728334336597,-625.1,0.00043287,120]
[340027323,1728334336607,-914.39,0.00043287,120]
[340027324,1728334336617,-500.0,0.00043287,120]
[340027325,1728334336629,-500.0,0.00043287,120]
[340027326,1728334336639,-500.0,0.00043287,120]
[340027327,1728334336650,-500.0,0.00043287,120]
[340027328,1728334336661,-1047.98,0.00043287,120]
[340027329,1728334336671,-683.38,0.00043287,120]
[340027330,1728334336682,-500.0,0.00043287,120]
[340027331,1728334336694,-1235.61,0.00043287,120]
[340027332,1728334336704,-1137.42,0.00043287,120]
[340027333,1728334336715,-500.0,0.00043287,120]
[340027334,1728334336727,-500.0,0.00043287,120]
[340027335,1728334336740,-256.97960322,0.00043287,120]
[340027336,1728334336751,-575.41,0.00043287,120]
[340027337,1728334336760,-800.54,0.00043287,120]
[340027338,1728334336770,-709.12,0.00043287,120]
[340027339,1728334336779,-711.22,0.00043287,120]
[340027340,1728334336788,-550.77,0.00043287,120]
[340027341,1728334336798,-744.73,0.00043287,120]
[340027342,1728334336807,-750.18,0.00043287,120]
[340027343,1728334336816,-607.18,0.00043287,120]
[340027344,1728334336826,-1202.82,0.00043287,120]
[340027345,1728334336835,-466.66727252,0.00043287,120]
[340027346,1728334336845,-1170.58,0.00043287,120]
[340027347,1728334336854,-500.0,0.00043287,120]
[340027348,1728334336863,-637.28,0.00043287,120]
[340027349,1728334336873,-536.68661235,0.00043287,120]
[340027350,1728334336882,-1008.72,0.00043287,120]
[340027351,1728334336891,-576.24,0.00043287,120]
[340027352,1728334336901,-787.72,0.00043287,120]
[340027353,1728334336910,-687.3,0.00043287,120]
[340027354,1728334336919,-917.09,0.00043287,120]
[340027355,1728334336928,-1008.32,0.00043287,120]
[340027356,1728334336937,-1051.57,0.00043287,120]
[340027357,1728334336947,-677.92,0.00043287,120]
[340027358,1728334336957,-299.70764083,0.00043287,120]
[340027359,1728334336967,-529.97,0.00043287,120]
[340027360,1728334336979,-1141.57,0.00043287,120]
[340027361,1728334336989,-954.06,0.00043287,120]
[340027362,1728334337001,-865.56,0.00043287,120]
[340027363,1728334337011,-818.05,0.00043287,120]
[340027364,1728334337023,-500.0,0.00043287,120]
[340027365,1728334337034,-647.55,0.00043287,120]
[340027366,1728334337045,-504.35,0.00043287,120]
[340027367,1728334337055,-851.04,0.00043287,120]
[340027368,1728334337064,-523.84,0.00043287,120]
[340027369,1728334337075,-757.96,0.00043287,30]
[340027370,1728334337085,-563.6,0.00043287,120]
[340027371,1728334337095,-555.29,0.00043287,120]
[340027372,1728334337107,-743.56,0.00043287,120]
[340027373,1728334337120,-500.0,0.00043287,120]
[340027374,1728334337135,-754.92,0.00043287,120]
[340027375,1728334337147,-1365.58,0.00043287,120]
[340027376,1728334337157,-623.42,0.00043287,120]
[340027377,1728334337169,-861.29,0.00043287,120]
[340027378,1728334337181,-573.92,0.00043287,120]
[340027379,1728334337192,-555.73,0.00043287,120]
[340027380,1728334337204,-917.57,0.00043287,120]
[340027381,1728334337214,-500.0,0.00043287,120]
[340027382,1728334337224,-544.85,0.00043287,120]
[340027383,1728334337235,-571.4,0.00043287,60]
[340027384,1728334337247,-719.55,0.00043287,120]
[340027385,1728334337258,-640.61,0.00043287,120]
[340027386,1728334337269,-918.63,0.00043287,120]
[340027387,1728334337279,-812.73,0.00043287,120]
[340027388,1728334337291,-500.0,0.00043287,120]
[340027389,1728334337303,-502.3,0.00043287,120]
[340027390,1728334337314,-708.61,0.00043287,120]
[340027391,1728334337327,-319.61541179,0.00043287,120]
[340027392,1728334337337,-537.44,0.00043287,120]
[340027393,1728334337348,-610.21,0.00043287,120]
[340027394,1728334337360,-554.6,0.00043287,120]
[340027395,1728334337371,-500.0,0.00043287,120]
[340027396,1728334337382,-500.0,0.00043287,120]
[340027397,1728334337393,-760.72,0.00043287,120]
[340027398,1728334337403,-505.93,0.00043287,120]
[340027399,1728334337413,-500.0,0.00043287,120]
[340027400,1728334337423,-579.67,0.00043287,120]
[340027401,1728334337433,-500.0,0.00043287,120]
[340027402,1728334337442,-500.0,0.00043287,120]
[340027403,1728334337451,-909.57,0.00043287,120]
[340027404,1728334337463,-699.58,0.00043287,120]
[340027405,1728334337472,-778.22,0.00043287,120]
[340027406,1728334337483,-1176.62,0.00043287,120]
[340027407,1728334337495,-538.25,0.00043287,120]
[340027408,1728334337505,-628.45,0.00043287,120]
[340027409,1728334337514,-799.02,0.00043287,120]
[340027410,1728334337523,-1344.11,0.00043287,21]
[340027411,1728334337533,-500.0,0.00043287,120]
[340027412,1728334337542,-1176.49,0.00043287,120]
[340027413,1728334337551,-500.0,0.00043287,120]
[340027414,1728334337561,-538.89,0.00043287,120]
[340027415,1728334337571,-500.0,0.00043287,120]
[340027416,1728334337581,-2556.51,0.00043287,120]
[340027417,1728334337591,-686.35,0.00043287,120]
[340027418,1728334337600,-1127.5,0.00043287,120]
[340027419,1728334337611,-557.71,0.00043287,120]
[340027420,1728334337620,-336.73,0.00043287,7]
[340027421,1728334337630,-618.33,0.00043287,120]
[340027422,1728334337640,-554.61,0.00043287,120]
[340027423,1728334337649,-724.85,0.00043287,120]
[340027424,1728334337659,-500.0,0.00043287,120]
[340027425,1728334337668,-575.14,0.00043287,120]
[340027426,1728334337677,-217.16280235,0.00043287,120]
[340027427,1728334337686,-501.94,0.00043287,120]
[340027428,1728334337695,-500.0,0.00043287,120]